fUSD/lending_fUSD_20241108
["ID","MTS","AMOUNT","RATE_DAILY","PERIOD"]
[341613602,1731033050110,-1000.0,0.00027397,3]
[341613603,1731033050120,-1000.0,0.00027397,3]
[341613604,1731033050128,-1000.0,0.00027397,3]
[341613605,1731033050137,-1000.0,0.00027397,3]
[341613606,1731033050146,-1000.0,0.00027397,3]
[341613607,1731033050155,-1000.0,0.00027397,3]
[341613608,1731033050165,-1000.0,0.00027397,3]
[341613609,1731033050175,-1000.0,0.00027397,3]
[341613610,1731033050184,-1000.0,0.00027397,3]
[341613611,1731033050193,-1000.0,0.00027397,3]
[341613612,1731033050202,-1000.0,0.00027397,3]
[341613613,1731033050211,-1000.0,0.00027397,3]
[341613614,1731033050221,-200.0,0.00027397,7]
[341613615,1731033050231,-1000.0,0.00027397,3]
[341613616,1731033050241,-1000.0,0.00027397,3]
[341613617,1731033050251,-1000.0,0.00027397,3]
[341613618,1731033050261,-1000.0,0.00027397,3]
[341613619,1731033050270,-1000.0,0.00027397,3]
[341613620,1731033050279,-1000.0,0.00027397,3]
[341613621,1731033050289,-1000.0,0.00027397,3]
[341613622,1731033050298,-1000.0,0.00027397,3]
[341613623,1731033050307,-1000.0,0.00027397,3]
[341613624,1731033050316,-1000.0,0.00027397,3]
[341613625,1731033050325,-1000.0,0.00027397,3]
[341613626,1731033050334,-1000.0,0.00027397,3]
[341613627,1731033050344,-1000.0,0.00027397,3]
[341613628,1731033050354,-1000.0,0.00027397,3]
[341613629,1731033050364,-1000.0,0.00027397,3]
[341613630,1731033050374,-1000.0,0.00027397,3]
[341613631,1731033050383,-1000.0,0.00027397,3]
[341613632,1731033050393,-1000.0,0.00027397,3]
[341613633,1731033050403,-1000.0,0.00027397,3]
[341613634,1731033050412,-1000.0,0.00027397,3]
[341613635,1731033050421,-1000.0,0.00027397,3]
[341613636,1731033050430,-1000.0,0.00027397,3]
[341613637,1731033050439,-1000.0,0.00027397,3]
[341613638,1731033050448,-1000.0,0.00027397,3]
[341613639,1731033050457,-1000.0,0.00027397,3]
[341613640,1731033050466,-1000.0,0.00027397,3]
[341613641,1731033050476,-1000.0,0.00027397,3]
[341613642,1731033050486,-1000.0,0.00027397,3]
[341613643,1731033050494,-1000.0,0.00027397,3]
[341613644,1731033050505,-1000.0,0.00027397,3]
[341613645,1731033050514,-1000.0,0.00027397,3]
[341613646,1731033050523,-1000.0,0.00027397,3]
[341613647,1731033050532,-1000.0,0.00027397,3]
[341613648,1731033050543,-3000.0,0.00027397,2]
[341613649,1731033050552,-3000.0,0.00027397,2]
[341613650,1731033050561,-3000.0,0.00027397,2]
[341613651,1731033050571,-3000.0,0.00027397,2]
[341613652,1731033050580,-3000.0,0.00027397,2]
[341613653,1731033050590,-376.0,0.00027397,3]
[341613654,1731033050599,-3000.0,0.00027397,2]
[341613655,1731033050609,-3000.0,0.00027397,2]
[341613656,1731033050618,-3000.0,0.00027397,2]
[341613657,1731033050627,-3000.0,0.00027397,2]
[341613658,1731033050636,-3000.0,0.00027397,2]
[341613659,1731033050646,-3000.0,0.00027397,2]
[341613660,1731033050655,-3000.0,0.00027397,2]
[341613661,1731033050664,-3000.0,0.00027397,2]
[341613662,1731033050673,-3000.0,0.00027397,2]
[341613663,1731033050682,-3000.0,0.00027397,2]
[341613664,1731033050692,-155.536532,0.00027397,2]
[341613665,1731033050701,-263.969992,0.00027397,7]
[341613666,1731033050710,-372.23,0.00027397,10]
[341613667,1731033050720,-310.19,0.00027397,10]
[341613668,1731033050729,-491.13934935,0.00027406,10]
[341613669,1731033050739,-1921.0,0.00027407,2]
[341613670,1731033050748,-921.0,0.00027407,2]
[341613671,1731033050758,-1258.0,0.00027407,2]
[341613672,1731033050767,-813.0,0.00027407,2]
[341613673,1731033050776,-2909.0,0.00027407,2]
[341613674,1731033050785,-3463.0,0.00027407,2]
[341613675,1731033050794,-1090.0,0.00027407,2]
[341613676,1731033050804,-452.0,0.00027407,2]
[341613677,1731033050813,-1253.0,0.00027407,2]
[341613678,1731033050822,-5924.0,0.00027407,2]
[341613679,1731033050831,-631.0,0.00027407,2]
[341613680,1731033050840,-150.0,0.00027407,2]
[341613681,1731033050849,-1097.081,0.00027407,2]
[341613682,1731033050859,-207.87252816,0.00027412,2]
[341613683,1731033050868,-1451.594,0.00027434,16]
[341613684,1731033050877,-2000.0,0.00027447,5]
[341613685,1731033050887,-150.110806,0.00027448,3]
[341613686,1731033050896,-150.110806,0.00027478,4]
[341613687,1731033050905,-854.12103132,0.00027482,2]
[341613688,1731033050915,-500.0,0.00027496,2]
[341613689,1731033050924,-152.0,0.00027515,4]
[341613690,1731033050933,-150.110806,0.00027548,3]
[341613691,1731033050942,-515.9851269,0.00027568,2]
[341613692,1731033050951,-786.20664418,0.00027568,2]
[341613693,1731033050960,-1083.52244257,0.00027568,2]
[341613694,1731033050969,-300.0,0.00027596,120]
[341613695,1731033050978,-276.08386959,0.00027596,2]
[341613696,1731033050988,-150.0,0.00027597,2]
[341613697,1731033050997,-150.0,0.00027597,2]
[341613698,1731033051011,-152.201,0.00027597,2]
[341613699,1731033051020,-150.488,0.00027597,2]
[341613700,1731033051028,-181.534,0.00027597,2]
[341613701,1731033051038,-150.0,0.00027597,2]
[341613702,1731033051047,-250.0,0.00027597,2]
[341613703,1731033051058,-248.7,0.00027597,2]
[341613704,1731033051068,-150.363,0.00027597,2]
[341613705,1731033051078,-203.184,0.00027597,2]
[341613706,1731033051087,-204.2,0.00027597,2]
[341613707,1731033051096,-398.0,0.000276,11]
[341613708,1731033051105,-196.0,0.000276,11]
[341613709,1731033051115,-1800.0,0.000276,10]
[341613710,1731033051124,-209.1630306,0.00027613,2]
[341613711,1731033051132,-150.0,0.00027622,2]
[341613712,1731033051142,-150.0,0.00027631,2]
[341613713,1731033051151,-251.64594709,0.00027631,2]
[341613714,1731033051160,-150.0,0.00027645,2]
[341613715,1731033051170,-156.620074,0.00027647,7]
[341613716,1731033051180,-150.110806,0.00027648,4]
[341613717,1731033051189,-150.0,0.0002765,2]
[341613718,1731033051198,-300.0,0.00027667,120]
[341613719,1731033051208,-151.40121958,0.00027667,30]
[341613720,1731033051217,-378.22088095,0.00027667,2]
[341613721,1731033051226,-453.0618345,0.00027667,2]
[341613722,1731033051235,-104110.94682175,0.00027668,4]
[341613723,1731033051250,-1996.38564,0.00027668,4]
[341613724,1731033051263,-2581.87713888,0.00027668,4]
[341613725,1731033051816,-1000.0,0.00026552,2]
[341613726,1731033051827,-2252.10404333,0.00027407,2]
[341613727,1731033051842,-583.83,0.00027407,2]
[341613728,1731033051857,-2670.17695667,0.00027407,2]
[341613729,1731033051866,-7799.57736596,0.00027668,4]
[341613730,1731033051877,-62369.85740362,0.00027668,4]
[341613731,1731033052329,-559.0,0.00027379,2]
[341613732,1731033052338,-509.97,0.00027397,2]
[341613733,1731033052347,-500.0,0.00027397,2]
[341613734,1731033052356,-4669.84559011,0.00027594,2]
[341613735,1731033052365,-7382.2776856,0.00027668,4]
[341613736,1731033053001,-500.0,0.00027397,2]
[341613737,1731033053015,-500.0,0.00027397,2]
[341613738,1731033053025,-258.5,0.00027397,10]
[341613739,1731033053034,-159.76367702,0.00027568,2]
[341613740,1731033053044,-12836.37509098,0.00027668,4]
[341613741,1731033096718,151.0,0.00021096,2]
[341613742,1731033098746,964.99,0.00021762,2]
[341613743,1731033098951,964.99,0.00024026,2]
[341613744,1731033127405,151.0,0.00021096,2]
[341613745,1731033153420,160.554009,0.00021096,2]
[341613746,1731033169210,150.0,0.00018123,2]
[341613747,1731033274748,157.61,0.00015342,2]
[341613750,1731033371933,157.67,0.00024877,30]
[341613751,1731033439180,900.0,0.00025,7]
[341613753,1731033674961,203.67,0.00020007,2]
[341613755,1731033854204,150.0,0.00015342,2]
[341613756,1731033854227,7.37,0.00015342,2]
[341613757,1731033947046,172.81,0.00024736,120]
[341613761,1731034027145,-1225.05476,0.00022911,2]
[341613762,1731034027166,-978.88,0.00023026,2]
[341613763,1731034027187,-7120.90376667,0.00023059,2]
[341613764,1731034031670,-303.09623333,0.00023059,2]
[341613765,1731034031689,-913.5,0.0002368,2]
[341613766,1731034031710,-849.09741069,0.0002368,2]
[341613767,1731034037104,-10320.2351018,0.0002368,2]
[341613772,1731034147200,-2941.8669,0.0002216,2]
[341613773,1731034150144,-12848.1331,0.0002216,2]
[341613774,1731034150166,-161.81752853,0.00024033,2]
[341613775,1731034150188,-993.47,0.00024233,2]
[341613776,1731034150208,-258.44,0.00024233,2]
[341613777,1731034150229,-1010.04,0.00024233,2]
[341613778,1731034151346,-153.09,0.00024496,2]
[341613779,1731034151366,-392.33,0.00024603,2]
[341613780,1731034151387,-3526.99,0.00024603,2]
[341613781,1731034151407,-150.0,0.00024603,2]
[341613782,1731034151427,-993.47,0.00024623,2]
[341613783,1731034153761,250.0,0.00024475,2]
[341613784,1731034155624,6826.16440282,0.00023933,2]
[341613785,1731034177592,2000.0,0.0002436,2]
[341613786,1731034180363,23900.0,0.00024353,2]
[341613787,1731034189683,203.67,0.00019504,2]
[341613788,1731034190884,250.0,0.0002438,2]
[341613789,1731034194051,299.52,0.0002438,2]
[341613790,1731034229549,2169.21,0.00024385,2]
[341613795,1731034232374,-557.9,0.00024678,2]
[341613796,1731034232384,-500.0,0.00024683,2]
[341613797,1731034232393,-557.9,0.00024691,2]
[341613798,1731034232402,-557.9,0.00024704,2]
[341613799,1731034232417,-500.0,0.00024708,2]
[341613800,1731034232428,-1697.66,0.00024709,2]
[341613801,1731034232437,-2043.01,0.00024709,2]
[341613802,1731034232446,-2448.38,0.00024709,2]
[341613803,1731034232457,-557.9,0.00024717,2]
[341613804,1731034232466,-1600.0,0.00024723,2]
[341613805,1731034232475,-7894.82,0.00024724,2]
[341613806,1731034232485,-170.13,0.00024724,2]
[341613807,1731034232494,-557.9,0.00024729,2]
[341613808,1731034232503,-150.99,0.00024732,2]
[341613809,1731034232513,-150.0,0.00024736,2]
[341613810,1731034232522,-557.9,0.00024742,2]
[341613811,1731034232531,-727.39,0.00024747,2]
[341613812,1731034232541,-557.9,0.00024755,2]
[341613813,1731034232550,-557.9,0.00024768,2]
[341613814,1731034232559,-300.0,0.00024775,2]
[341613815,1731034232569,-487.79,0.00024775,2]
[341613816,1731034232579,-557.9,0.00024781,2]
[341613817,1731034232589,-1500.0,0.00024792,2]
[341613818,1731034232598,-557.9,0.00024794,2]
[341613819,1731034232608,-301.84,0.00024805,2]
[341613820,1731034232617,-557.9,0.00024807,2]
[341613821,1731034232626,-200.0,0.00024812,2]
[341613822,1731034232635,-557.9,0.0002482,2]
[341613823,1731034232644,-227.9,0.0002483,2]
[341613824,1731034232654,-557.9,0.00024833,2]
[341613825,1731034232663,-557.9,0.00024846,2]
[341613826,1731034232674,-557.9,0.00024859,2]
[341613827,1731034232683,-1895.96,0.00024866,2]
[341613828,1731034232692,-226.37,0.00024867,2]
[341613829,1731034232702,-557.9,0.00024872,2]
[341613830,1731034232711,-319.32572862,0.00024878,2]
[341613833,1731034232828,-226.60427138,0.00024878,2]
[341613834,1731034232838,-557.9,0.00024885,2]
[341613835,1731034232847,-2438.63,0.00024888,2]
[341613836,1731034232856,-557.9,0.00024898,2]
[341613837,1731034232867,-557.9,0.00024911,2]
[341613838,1731034232877,-557.9,0.00024924,2]
[341613839,1731034232887,-500.0,0.00024932,2]
[341613840,1731034232897,-869.86,0.00024935,2]
[341613841,1731034232907,-500.0,0.00024956,2]
[341613842,1731034232916,-500.0,0.00024956,2]
[341613843,1731034232927,-500.0,0.00024956,2]
[341613844,1731034232937,-196.01569527,0.00024956,2]
[341613845,1731034232946,-500.0,0.00024956,2]
[341613846,1731034232956,-500.0,0.00024956,2]
[341613847,1731034232966,-424.79411508,0.00024956,2]
[341613848,1731034232975,-500.0,0.00024956,2]
[341613849,1731034232984,-500.0,0.00024956,2]
[341613850,1731034232994,-265.82212875,0.00024956,2]
[341613851,1731034233005,-500.0,0.00024956,2]
[341613853,1731034233015,-500.0,0.00024956,2]
[341613855,1731034233024,-500.0,0.00024956,2]
[341613857,1731034233035,-500.0,0.00024956,2]
[341613858,1731034233045,-188.27974301,0.00024956,2]
[341613859,1731034233054,-256.30049282,0.00024956,2]
[341613860,1731034233179,-192.07627432,0.00024956,2]
[341613861,1731034233188,-7909.69678728,0.00024956,2]
[341613862,1731034233198,-4963.93237703,0.00024957,2]
[341613869,1731034238370,-9646.18762297,0.00024957,2]
[341613870,1731034238380,-164.3,0.00024957,2]
[341613871,1731034238389,-158.38,0.00024982,2]
[341613872,1731034238399,-761.06357703,0.00025,2]
[341613873,1731034238412,-131.93642297,0.00025,2]
[341613874,1731034238423,-1612.51646364,0.00025,2]
[341613875,1731034238435,-252.04997519,0.00025,2]
[341613876,1731034238446,-1861.43356117,0.00025,2]
[341613877,1731034238457,-1000.0,0.00025004,2]
[341613878,1731034238466,-993.47,0.00025012,2]
[341613879,1731034238475,-167.29,0.00025015,2]
[341613880,1731034238485,-350.24,0.00025024,2]
[341613881,1731034238494,-157.67,0.00025047,30]
[341613882,1731034238503,-474.0,0.00025131,3]
[341613883,1731034238513,-156.37,0.00025239,2]
[341613884,1731034238523,-156.37,0.00025253,2]
[341613885,1731034238531,-250.0,0.00025259,2]
[341613886,1731034238540,-156.37,0.00025268,2]
[341613887,1731034238550,-156.37,0.00025282,2]
[341613888,1731034238561,-978.88,0.0002529,2]
[341613889,1731034238574,-156.37,0.00025296,2]
[341613890,1731034238585,-156.37,0.0002531,2]
[341613891,1731034238597,-156.37,0.00025324,2]
[341613892,1731034238607,-156.37,0.00025338,2]
[341613893,1731034238617,-156.37,0.00025352,2]
[341613894,1731034238626,-789.0,0.00025365,2]
[341613895,1731034238635,-156.37,0.00025366,2]
[341613896,1731034238645,-156.37,0.0002538,2]
[341613897,1731034238655,-156.37,0.00025394,2]
[341613898,1731034238665,-993.47,0.00025401,2]
[341613899,1731034238677,-156.37,0.00025408,2]
[341613900,1731034238686,-156.37,0.00025422,2]
[341613901,1731034238697,-156.37,0.00025436,2]
[341613902,1731034238706,-156.37,0.0002545,2]
[341613903,1731034238716,-661.75,0.00025452,120]
[341613904,1731034238725,-153.09,0.00025463,2]
[341613905,1731034238734,-156.37,0.00025464,2]
[341613906,1731034238744,-156.37,0.00025478,2]
[341613907,1731034238753,-156.37,0.00025492,2]
[341613908,1731034238763,-290.72370463,0.00025599,2]
[341613909,1731034238775,-8.79629537,0.00025599,2]
[341613910,1731034238784,-500.0,0.00025749,7]
[341613911,1731034238793,-500.0,0.00025749,7]
[341613912,1731034238802,-500.0,0.00025749,7]
[341613913,1731034238812,-993.47,0.00025791,2]
[341613914,1731034238821,-164.03,0.00026001,2]
[341613915,1731034238830,-226.44,0.00026079,2]
[341613916,1731034238839,-993.47,0.0002618,2]
[341613917,1731034238848,-350.24,0.00026275,2]
[341613918,1731034238858,-153.09,0.0002643,2]
[341613919,1731034238867,-471.72351308,0.00026569,2]
[341613920,1731034238879,-521.74648692,0.00026569,2]
[341613921,1731034238888,-500.0,0.00026571,7]
[341613922,1731034238897,-172.28,0.0002664,2]
[341613923,1731034238906,-299.52,0.00026818,2]
[341613924,1731034238916,-309.16,0.0002689,3]
[341613925,1731034238926,-2513.8859,0.000269,2]
[341613926,1731034238935,-406.37673102,0.000269,2]
[341613927,1731034238947,-2717.92896898,0.000269,2]
[341613928,1731034238957,-192.0,0.000269,10]
[341613929,1731034238966,-500.0,0.000269,9]
[341613930,1731034238976,-3202.32261664,0.000269,2]
[341613932,1731034238987,-1188.82345178,0.000269,2]
[341613933,1731034238997,-396.75924515,0.00026959,2]
[341613934,1731034239070,-596.71075485,0.00026959,2]
[341613935,1731034239080,-463.75,0.0002699,3]
[341613936,1731034239089,-3059.33412682,0.00027,2]
[341613937,1731034239281,-127.61120307,0.00027,2]
[341613938,1731034239296,-7457.51635288,0.00027,2]
[341613939,1731034239308,-3125.94448,0.00027,2]
[341613940,1731034239319,-1183.09863459,0.00027,2]
[341613941,1731034239331,-4474.84121674,0.00027,2]
[341613942,1731034239342,-900.0,0.00027,28]
[341613943,1731034239353,-154.58,0.00027113,3]
[341613944,1731034239362,-1138.53459047,0.00027115,2]
[341613945,1731034239372,-364.9,0.00027123,2]
[341613946,1731034239381,-361.9,0.00027123,2]
[341613947,1731034239391,-151.37,0.00027123,2]
[341613948,1731034239401,-361.9,0.00027123,2]
[341613949,1731034239413,-361.9,0.00027123,2]
[341613950,1731034239423,-150.0,0.00027123,2]
[341613951,1731034239432,-150.0,0.00027123,2]
[341613952,1731034239442,-359.9,0.00027123,2]
[341613953,1731034239451,-300.68,0.00027123,2]
[341613954,1731034239461,-153.52,0.00027123,2]
[341613955,1731034239470,-151.44,0.00027123,2]
[341613956,1731034239479,-150.0,0.00027123,2]
[341613957,1731034239492,-152.42,0.00027123,2]
[341613958,1731034239502,-300.0,0.00027123,2]
[341613959,1731034239511,-150.0,0.00027123,2]
[341613960,1731034239521,-150.0,0.00027123,2]
[341613961,1731034239530,-300.0,0.00027123,2]
[341613962,1731034239539,-150.0,0.00027123,2]
[341613963,1731034239548,-150.0,0.00027123,2]
[341613964,1731034239557,-150.0,0.00027123,2]
[341613965,1731034239566,-4391.14606841,0.00027233,2]
[341613966,1731034239577,-2500.0,0.00027296,2]
[341613967,1731034239586,-200.0,0.00027297,2]
[341613968,1731034239595,-745.0084,0.00027297,2]
[341613969,1731034239605,-161.74138316,0.00027373,2]
[341613970,1731034239614,-500.0,0.00027373,2]
[341613971,1731034239624,-505.40294698,0.00027373,2]
[341613972,1731034239634,-502.03358503,0.00027373,2]
[341613973,1731034239643,-340.36329769,0.00027373,2]
[341613974,1731034239652,-500.0,0.00027373,2]
[341613975,1731034239661,-486.62780438,0.00027373,2]
[341613976,1731034239671,-178.17170358,0.00027387,2]
[341613977,1731034239681,-1798.112,0.0002739,16]
[341613978,1731034239690,-1730.67478,0.0002739,2]
[341613979,1731034239699,-500.0,0.00027393,7]
[341613980,1731034239709,-500.0,0.00027393,7]
[341613981,1731034239718,-150.0,0.00027394,2]
[341613982,1731034239727,-26036.94281449,0.00027395,2]
[341613983,1731034239737,-166.23621053,0.00027396,16]
[341613984,1731034239746,-161.884909,0.00027397,2]
[341613985,1731034239755,-167.488082,0.00027397,2]
[341613986,1731034239764,-509.32126579,0.00027397,2]
[341613987,1731034239774,-500.0,0.00027397,2]
[341613988,1731034239783,-509.23456006,0.00027397,2]
[341613989,1731034239793,-509.38,0.00027397,2]
[341613990,1731034239803,-500.0,0.00027397,2]
[341613991,1731034239812,-500.0,0.00027397,2]
[341613992,1731034239822,-500.0,0.00027397,2]
[341613993,1731034239832,-701.61,0.00027397,2]
[341613994,1731034239841,-500.0,0.00027397,2]
[341613995,1731034239850,-500.0,0.00027397,2]
[341613996,1731034239860,-500.0,0.00027397,2]
[341613997,1731034239870,-509.9155299,0.00027397,2]
[341613998,1731034239879,-500.0,0.00027397,2]
[341613999,1731034239889,-500.0,0.00027397,2]
[341614000,1731034239898,-500.0,0.00027397,2]
[341614001,1731034239908,-514.5,0.00027397,2]
[341614002,1731034239917,-500.0,0.00027397,2]
[341614003,1731034239927,-508.87814986,0.00027397,2]
[341614004,1731034239936,-509.34148582,0.00027397,2]
[341614005,1731034239945,-501.9084423,0.00027397,2]
[341614006,1731034239955,-537.93563522,0.00027397,2]
[341614007,1731034239964,-698.92,0.00027397,2]
[341614008,1731034239974,-534.81073194,0.00027397,2]
[341614009,1731034239983,-500.0,0.00027397,2]
[341614010,1731034239992,-507.73467729,0.00027397,2]
[341614011,1731034240002,-500.0,0.00027397,2]
[341614012,1731034240011,-500.0,0.00027397,2]
[341614013,1731034240021,-3293.38,0.00027397,2]
[341614015,1731034240030,-500.0,0.00027397,2]
[341614016,1731034240039,-500.0,0.00027397,2]
[341614018,1731034240049,-507.29,0.00027397,2]
[341614020,1731034240058,-500.0,0.00027397,2]
[341614022,1731034240067,-500.0,0.00027397,2]
[341614023,1731034240077,-500.0,0.00027397,2]
[341614024,1731034240086,-500.0,0.00027397,2]
[341614025,1731034240095,-500.0,0.00027397,2]
[341614026,1731034240104,-500.0,0.00027397,2]
[341614027,1731034240113,-599.75371319,0.00027397,2]
[341614028,1731034240123,-516.79558536,0.00027397,2]
[341614029,1731034240132,-500.0,0.00027397,2]
[341614030,1731034240141,-500.0,0.00027397,2]
[341614031,1731034240150,-500.0,0.00027397,2]
[341614032,1731034240161,-505.02393835,0.00027397,2]
[341614033,1731034240171,-500.0,0.00027397,2]
[341614034,1731034240182,-511.67778598,0.00027397,2]
[341614035,1731034240191,-500.0,0.00027397,2]
[341614036,1731034240201,-508.28647477,0.00027397,2]
[341614037,1731034240210,-500.0,0.00027397,2]
[341614038,1731034240219,-560.97,0.00027397,2]
[341614039,1731034240229,-500.0,0.00027397,2]
[341614040,1731034240238,-500.0,0.00027397,2]
[341614041,1731034240247,-510.33121416,0.00027397,2]
[341614042,1731034240256,-508.3111931,0.00027397,2]
[341614043,1731034240266,-500.0,0.00027397,2]
[341614044,1731034240275,-500.0,0.00027397,2]
[341614045,1731034240284,-227.50332617,0.00027397,2]
[341614046,1731034240293,-500.0,0.00027397,2]
[341614047,1731034240303,-500.0,0.00027397,2]
[341614048,1731034240312,-510.20075176,0.00027397,2]
[341614049,1731034240321,-500.0,0.00027397,2]
[341614050,1731034240330,-500.0,0.00027397,2]
[341614052,1731034240340,-509.62049593,0.00027397,2]
[341614054,1731034240349,-500.0,0.00027397,2]
[341614055,1731034240358,-596.26,0.00027397,2]
[341614058,1731034240368,-542.87,0.00027397,2]
[341614060,1731034240378,-500.0,0.00027397,2]
[341614061,1731034240387,-515.04157226,0.00027397,2]
[341614062,1731034240396,-510.34070021,0.00027397,2]
[341614063,1731034240405,-509.62183206,0.00027397,2]
[341614064,1731034240417,-500.0,0.00027397,2]
[341614065,1731034240428,-579.52447233,0.00027397,2]
[341614066,1731034240443,-329.75303858,0.00027397,2]
[341614067,1731034240453,-511.56351104,0.00027397,2]
[341614068,1731034240462,-500.0,0.00027397,2]
[341614069,1731034240471,-511.29106397,0.00027397,2]
[341614070,1731034240481,-500.0,0.00027397,2]
[341614071,1731034240491,-500.0,0.00027397,2]
[341614072,1731034240500,-506.80198877,0.00027397,2]
[341614073,1731034240510,-500.0,0.00027397,2]
[341614074,1731034240519,-502.42511813,0.00027397,2]
[341614075,1731034240528,-643.63156321,0.00027397,2]
[341614076,1731034240537,-500.0,0.00027397,2]
[341614077,1731034240546,-508.63707938,0.00027397,2]
[341614078,1731034240555,-500.0,0.00027397,2]
[341614079,1731034240565,-500.0,0.00027397,2]
[341614080,1731034240575,-509.32833717,0.00027397,2]
[341614081,1731034240584,-506.65754754,0.00027397,2]
[341614082,1731034240594,-500.0,0.00027397,2]
[341614083,1731034240603,-510.4118784,0.00027397,2]
[341614084,1731034240612,-500.0,0.00027397,2]
[341614085,1731034240622,-500.0,0.00027397,2]
[341614086,1731034240631,-500.0,0.00027397,2]
[341614087,1731034240640,-500.0,0.00027397,2]
[341614088,1731034240649,-500.0,0.00027397,2]
[341614089,1731034240659,-507.83804375,0.00027397,2]
[341614090,1731034240668,-509.41024588,0.00027397,2]
[341614091,1731034240680,-500.0,0.00027397,2]
[341614092,1731034240689,-419.41222502,0.00027397,2]
[341614093,1731034240698,-513.60047731,0.00027397,2]
[341614094,1731034240707,-611.40808816,0.00027397,2]
[341614095,1731034240716,-514.14043077,0.00027397,2]
[341614096,1731034240726,-1130.42,0.00027397,2]
[341614097,1731034240735,-513.38612622,0.00027397,2]
[341614098,1731034240744,-571.09,0.00027397,2]
[341614099,1731034240753,-639.27,0.00027397,2]
[341614100,1731034240762,-581.04,0.00027397,2]
[341614101,1731034240771,-509.06506957,0.00027397,2]
[341614102,1731034240781,-500.0,0.00027397,2]
[341614103,1731034240790,-508.06374646,0.00027397,2]
[341614104,1731034240799,-583.39,0.00027397,2]
[341614105,1731034240809,-500.0,0.00027397,2]
[341614106,1731034240818,-500.0,0.00027397,2]
[341614107,1731034240828,-509.59451857,0.00027397,2]
[341614108,1731034240838,-500.0,0.00027397,2]
[341614109,1731034240847,-602.88,0.00027397,2]
[341614110,1731034240858,-500.0,0.00027397,2]
[341614111,1731034240867,-504.27,0.00027397,2]
[341614112,1731034240876,-500.0,0.00027397,2]
[341614113,1731034240886,-500.0,0.00027397,2]
[341614114,1731034240896,-540.84,0.00027397,2]
[341614115,1731034240905,-514.90889705,0.00027397,2]
[341614116,1731034240914,-500.0,0.00027397,2]
[341614117,1731034240926,-500.0,0.00027397,2]
[341614118,1731034240936,-500.0,0.00027397,2]
[341614119,1731034240946,-662.23,0.00027397,2]
[341614120,1731034240956,-542.44317667,0.00027397,2]
[341614121,1731034240965,-500.0,0.00027397,2]
[341614122,1731034240975,-500.0,0.00027397,2]
[341614123,1731034240985,-510.31562253,0.00027397,2]
[341614124,1731034240995,-500.0,0.00027397,2]
[341614125,1731034241004,-500.0,0.00027397,2]
[341614126,1731034241013,-518.66490808,0.00027397,2]
[341614127,1731034241023,-1249.49,0.00027397,2]
[341614128,1731034241032,-500.0,0.00027397,2]
[341614129,1731034241042,-500.0,0.00027397,2]
[341614130,1731034241052,-507.08939485,0.00027397,2]
[341614131,1731034241061,-740.6,0.00027397,2]
[341614132,1731034241071,-500.0,0.00027397,2]
[341614133,1731034241080,-500.0,0.00027397,2]
[341614134,1731034241090,-498.67341205,0.00027397,2]
[341614135,1731034241101,-882.44,0.00027397,2]
[341614136,1731034241111,-500.0,0.00027397,2]
[341614137,1731034241123,-500.0,0.00027397,2]